bitfinex/quotes_BTCUSD_20251226
["timestamp","ask_amount","ask_price","bid_price","bid_amount"]
[1766732831825,1.6e-07,89179.0,89174.0,0.01121403]
[1766732832027,1.6e-07,89179.0,89175.0,0.0112139]
[1766732832230,1.6e-07,89179.0,89174.0,0.01121403]
[1766732832469,1.6e-07,89179.0,89175.0,0.0112139]
[1766732832728,1.6e-07,89179.0,89176.0,0.01121377]
[1766732832931,1.6e-07,89179.0,89175.0,0.0112139]
[1766732833141,1.6e-07,89179.0,89176.0,0.01121377]
[1766732834396,1.6e-07,89179.0,89177.0,0.05606779]
[1766732836947,1.6e-07,89179.0,89176.0,0.01124]
[1766732841636,0.01121356,89179.0,89176.0,0.01124]
[1766732841780,0.06728113,89179.0,89176.0,0.011184]
[1766732841981,0.05606804,89178.0,89176.0,0.011184]
[1766732842204,0.06728329,89176.0,89173.0,0.01124]
[1766732843679,0.01121377,89176.0,89173.0,0.01124]
[1766732844294,0.01121352,89178.0,89173.0,0.01124]
[1766732844447,1.6e-07,89179.0,89178.0,0.000549]
[1766732845062,0.01121352,89178.0,89173.0,0.01124]
[1766732845884,0.01121365,89177.0,89173.0,0.01124]
[1766732846089,0.01121352,89178.0,89173.0,0.01124]
[1766732846628,0.06728101,89179.0,89173.0,0.01124]
[1766732846790,0.01121365,89177.0,89173.0,0.01124]
[1766732847596,0.01121377,89176.0,89173.0,0.01124]
[1766732847828,0.01121365,89177.0,89173.0,0.01124]
[1766732848181,0.01121352,89178.0,89173.0,0.01124]
[1766732848612,0.01121365,89177.0,89173.0,0.01124]
[1766732849162,0.01121352,89178.0,89173.0,0.01124]
[1766732850084,1.6e-07,89179.0,89173.0,0.01124]
[1766732851495,1.6e-07,89179.0,89173.0,0.02245415]
[1766732851907,0.23543885,89196.0,89174.0,0.01121403]
[1766732852053,0.00035778,89189.0,89180.0,0.05606638]
[1766732852260,0.00035778,89189.0,89181.0,0.01121315]
[1766732852899,0.00035778,89189.0,89180.0,0.01121327]
[1766732853233,0.00035778,89189.0,89181.0,0.01121315]
[1766732853413,0.00138394,89191.0,89182.0,0.01121302]
[1766732853614,0.01124,89193.0,89191.0,0.000193]
[1766732853818,0.01124,89193.0,89183.0,0.01121289]
[1766732854018,0.01121164,89193.0,89184.0,0.01121277]
[1766732854429,0.01121151,89194.0,89184.0,0.01121277]
[1766732854633,0.01121164,89193.0,89183.0,0.01121289]
[1766732855235,0.01121164,89193.0,89184.0,0.01121277]
[1766732855655,0.01121113,89197.0,89185.0,0.01121264]
[1766732855947,0.01121126,89196.0,89186.0,0.01121252]
[1766732856099,0.01121113,89197.0,89187.0,0.01121239]
[1766732856300,0.01121113,89197.0,89188.0,0.01121227]
[1766732856618,0.01121113,89197.0,89187.0,0.01121239]
[1766732856786,0.01121113,89197.0,89188.0,0.01121227]
[1766732856988,0.01121113,89197.0,89187.0,0.01121239]
[1766732857300,0.02245101,89198.0,89189.0,0.01121214]
[1766732858096,0.02245101,89198.0,89188.0,0.01121227]
[1766732858334,0.02250713,89198.0,89189.0,0.01121214]
[1766732858744,5.612e-05,89198.0,89189.0,0.01121214]
[1766732859176,0.01121088,89199.0,89190.0,0.02245201]
[1766732859378,0.01121088,89199.0,89190.0,0.01124]
[1766732859714,0.01121076,89200.0,89190.0,0.02245201]
[1766732860375,0.01121076,89200.0,89191.0,0.01121189]
[1766732861560,0.01121076,89200.0,89190.0,0.02245201]
[1766732861787,0.01121076,89200.0,89191.0,0.01121189]
[1766732862392,0.01121076,89200.0,89190.0,0.02245201]
[1766732862666,0.01121076,89200.0,89191.0,0.01121189]
[1766732863892,0.03366277,89203.0,89192.0,0.01121176]
[1766732864107,0.02245239,89203.0,89194.0,0.06726862]
[1766732864310,0.01124,89203.0,89195.0,0.01121139]
[1766732864516,0.02245038,89203.0,89193.0,0.06726979]
[1766732864716,0.02245038,89203.0,89192.0,0.01121176]
[1766732864922,0.01121051,89202.0,89192.0,0.01121176]
[1766732865542,0.01121038,89203.0,89190.0,0.06729964]
[1766732865876,0.01121025,89204.0,89193.0,0.01121164]
[1766732866092,0.01121038,89203.0,89194.0,0.01121151]
[1766732866685,0.01121051,89202.0,89193.0,0.01121164]
[1766732866903,0.01121051,89202.0,89192.0,0.01121176]
[1766732867080,0.01121051,89202.0,89193.0,0.01121164]
[1766732867297,0.01121051,89202.0,89192.0,0.01121176]
[1766732867494,0.01121051,89202.0,89193.0,0.01121164]
[1766732867702,0.01121038,89203.0,89193.0,0.01121164]
[1766732867884,0.06726188,89204.0,89194.0,0.01121151]
[1766732868265,0.01121038,89203.0,89194.0,0.01121151]
[1766732868674,0.01121051,89202.0,89193.0,0.01121164]
[1766732869170,0.01121051,89202.0,89191.0,0.01121189]
[1766732869387,0.01121051,89202.0,89192.0,0.01121176]
[1766732869597,0.01121063,89201.0,89191.0,0.01121189]
[1766732869829,0.01121051,89202.0,89193.0,0.01121164]
[1766732870069,0.01121051,89202.0,89191.0,0.01121189]
[1766732870070,0.01121051,89202.0,89192.0,0.01121176]
[1766732870427,0.01121051,89202.0,89193.0,0.01121164]
[1766732870624,0.01121038,89203.0,89194.0,0.01121151]
[1766732871142,0.01121038,89203.0,89193.0,0.01121164]
[1766732871438,0.01120975,89208.0,89193.0,0.01121164]
[1766732871439,0.02245176,89209.0,89203.0,0.00055]
[1766732871635,0.01120975,89208.0,89203.0,0.00055]
[1766732871994,0.01120975,89208.0,89199.0,0.01121088]
[1766732872201,0.01120975,89208.0,89198.0,0.01121101]
[1766732872437,0.01120975,89208.0,89196.0,0.01121126]
[1766732872599,0.01120988,89207.0,89198.0,0.01121101]
[1766732872803,0.01120988,89207.0,89197.0,0.02245113]
[1766732873260,0.01120988,89207.0,89198.0,0.01121101]
[1766732873665,0.01120988,89207.0,89197.0,0.02245113]
[1766732873880,0.01120988,89207.0,89198.0,0.01121101]
[1766732874047,0.01120988,89207.0,89197.0,0.02245113]
[1766732874620,0.01120988,89207.0,89198.0,0.01121101]
[1766732874791,0.01121,89206.0,89197.0,0.02245113]
[1766732874986,0.01120975,89208.0,89198.0,0.01121101]
[1766732875896,0.01120988,89207.0,89197.0,0.02245113]
[1766732876598,0.01120975,89208.0,89198.0,0.01121101]
[1766732877166,0.01120975,89208.0,89199.0,0.01121088]
[1766732877371,0.01120988,89207.0,89197.0,0.02245113]
[1766732877711,0.01120988,89207.0,89198.0,0.01121101]
[1766732877940,0.06906,89206.0,89197.0,0.02245113]
[1766732878093,0.12511047,89206.0,89197.0,0.01124]
[1766732878297,0.06726115,89205.0,89197.0,0.01124]
[1766732878477,0.01121025,89204.0,89197.0,0.01124]
[1766732879048,0.01121038,89203.0,89197.0,0.01124]
[1766732879395,0.01121025,89204.0,89197.0,0.01124]
[1766732880394,0.01121038,89203.0,89197.0,0.01124]
[1766732880622,0.01121038,89203.0,89197.0,0.010691]
[1766732881996,0.01121051,89202.0,89197.0,0.010691]
[1766732882910,0.01121063,89201.0,89197.0,0.010691]
[1766732883114,0.01121051,89202.0,89197.0,0.010691]
[1766732883919,0.08027051,89202.0,89197.0,0.010691]
[1766732884610,0.01121063,89201.0,89196.0,0.01124]
[1766732884736,0.08027051,89202.0,89196.0,0.01124]
[1766732884934,0.067961,89202.0,89196.0,0.01124]
[1766732885370,0.067961,89202.0,89196.0,0.02245126]
[1766732885817,0.067961,89202.0,89196.0,0.01124]
[1766732886225,0.067961,89202.0,89196.0,0.02245126]
[1766732887398,0.067961,89202.0,89196.0,0.01124]
[1766732888128,0.07917151,89202.0,89196.0,0.01124]
[1766732888311,0.01121063,89201.0,89196.0,0.010691]
[1766732889759,0.06906,89211.0,89201.0,0.000549]
[1766732889922,0.05604867,89209.0,89196.0,0.02190226]
[1766732890128,0.01120975,89208.0,89197.0,0.01121113]
[1766732890331,0.01120975,89208.0,89198.0,0.01121101]
[1766732890539,0.01120988,89207.0,89197.0,0.01121113]
[1766732890744,0.01120975,89208.0,89198.0,0.01121101]
[1766732890962,0.01120988,89207.0,89198.0,0.01121101]
[1766732891301,0.01120975,89208.0,89197.0,0.01121113]
[1766732891488,0.01120988,89207.0,89198.0,0.01121101]
[1766732891726,0.01120975,89208.0,89199.0,0.01121088]
[1766732894150,0.01120963,89209.0,89199.0,0.01121088]
[1766732894356,0.01120963,89209.0,89200.0,0.01121076]
[1766732894558,0.01120975,89208.0,89199.0,0.01121088]
[1766732894847,0.01120963,89209.0,89200.0,0.01121076]
[1766732895178,0.01120975,89208.0,89199.0,0.01121088]
[1766732895352,0.07916975,89208.0,89198.0,0.01121101]
[1766732895562,0.06796,89208.0,89200.0,0.01121076]
[1766732896474,0.07916975,89208.0,89199.0,0.01121088]
[1766732896978,0.06796,89208.0,89200.0,0.01121076]
[1766732897141,0.01120988,89207.0,89197.0,0.0672665]
[1766732897343,0.06796,89208.0,89199.0,0.01121088]
[1766732897548,0.06796,89208.0,89200.0,0.01121076]
[1766732897860,0.07916975,89208.0,89199.0,0.01121088]
[1766732898180,0.06796,89208.0,89199.0,0.01121088]
[1766732898324,0.06796,89208.0,89200.0,0.01121076]
[1766732898834,0.07916975,89208.0,89199.0,0.01121088]
[1766732899583,0.06796,89208.0,89200.0,0.01121076]
[1766732899984,0.07916975,89208.0,89196.0,0.010691]
[1766732900186,0.06796,89206.0,89196.0,0.010691]
[1766732900389,0.06796,89204.0,89196.0,0.010691]
[1766732900532,0.01121038,89203.0,89196.0,0.010691]
[1766732900732,0.01121038,89203.0,89195.0,0.01124]
[1766732900986,0.07917051,89202.0,89193.0,0.01124]
[1766732901137,0.07917063,89201.0,89193.0,0.01124]
[1766732901563,0.06796,89201.0,89194.0,0.01121151]
[1766732901836,0.06796,89201.0,89193.0,0.01124]
[1766732902355,0.01121076,89200.0,89193.0,0.01124]
[1766732902552,0.06796,89201.0,89193.0,0.01124]
[1766732903692,0.06796,89201.0,89193.0,0.02245164]
[1766732903890,0.06796,89201.0,89194.0,0.01121151]
[1766732904192,0.06796,89201.0,89195.0,0.01121139]
[1766732905220,0.06796,89201.0,89196.0,0.01121126]
[1766732905593,0.06796,89201.0,89193.0,0.02245164]
[1766732905764,0.06796,89201.0,89194.0,0.01121151]
[1766732907014,0.01121013,89205.0,89196.0,0.01121126]
[1766732907818,0.07917013,89205.0,89196.0,0.01121126]
[1766732908116,0.01121025,89204.0,89193.0,0.02245164]
[1766732908317,0.07917013,89205.0,89195.0,0.01121139]
[1766732908521,0.01121025,89204.0,89194.0,0.01121151]
[1766732908817,0.01121025,89204.0,89193.0,0.02245164]
[1766732909031,0.01121051,89202.0,89193.0,0.01124]
[1766732909227,0.01121025,89204.0,89193.0,0.01124]
[1766732909386,0.01121051,89202.0,89193.0,0.01124]
[1766732909591,0.01121063,89201.0,89193.0,0.01124]
[1766732909929,0.01121076,89200.0,89193.0,0.01069]
[1766732910290,0.01121076,89200.0,89182.0,0.056065]
[1766732910291,0.06796,89192.0,89182.0,0.056065]
[1766732910511,0.06796,89199.0,89192.0,0.000549]
[1766732910673,0.06796,89199.0,89186.0,0.01121252]
[1766732910674,0.01121139,89195.0,89186.0,0.01121252]
[1766732910880,0.06796,89199.0,89189.0,0.05606072]
[1766732911084,0.01121139,89201.0,89192.0,0.01121176]
[1766732911282,0.01121139,89201.0,89191.0,0.06727096]
[1766732911283,0.01121063,89201.0,89191.0,0.01121189]
[1766732911518,0.01121076,89200.0,89191.0,0.01121189]
[1766732911717,0.01121088,89199.0,89190.0,0.01121201]
[1766732911986,0.01121076,89200.0,89191.0,0.01121189]
[1766732912426,0.01121076,89200.0,89190.0,0.01121201]
[1766732912634,0.01121063,89201.0,89190.0,0.01121201]
[1766732912847,0.01121063,89201.0,89191.0,0.01121189]
[1766732913063,0.01121063,89201.0,89192.0,0.01121176]
[1766732913242,0.01121051,89202.0,89193.0,0.01121164]
[1766732913407,0.01121063,89201.0,89192.0,0.01121176]
[1766732913817,0.01121051,89202.0,89193.0,0.01121164]
[1766732914025,0.01121063,89201.0,89191.0,0.01121189]
[1766732914224,0.01121076,89200.0,89190.0,0.01121201]
[1766732915329,0.01121076,89200.0,89191.0,0.01121189]
[1766732915582,0.01121088,89199.0,89190.0,0.01121201]
[1766732915727,0.01121088,89199.0,89189.0,0.01121214]
[1766732915941,0.00018984,89193.0,89190.0,0.01121201]
[1766732916237,8.4e-07,89193.0,89190.0,0.01121201]
[1766732916868,8.4e-07,89193.0,89191.0,0.05605905]
[1766732917932,8.4e-07,89193.0,89190.0,0.0672717]
[1766732918135,8.4e-07,89193.0,89191.0,0.05605899]
[1766732918545,8.4e-07,89193.0,89190.0,0.0672717]
[1766732919673,8.4e-07,89193.0,89191.0,0.05605911]
[1766732922099,0.05610092,89204.0,89195.0,0.01121139]
[1766732922296,0.05610092,89204.0,89190.0,0.01121201]
[1766732922297,0.000189,89195.0,89190.0,0.01121201]
[1766732922464,0.01121063,89201.0,89191.0,0.01121189]
[1766732922664,0.01121076,89200.0,89191.0,0.01121189]
[1766732922875,0.09381101,89203.0,89192.0,0.01121176]
[1766732923075,0.01121063,89201.0,89192.0,0.01121176]
[1766732923290,0.09381101,89203.0,89194.0,0.01121151]
[1766732924023,0.09381101,89203.0,89193.0,0.01121164]
[1766732924221,0.08260063,89203.0,89193.0,0.01121164]
[1766732924428,0.08260063,89203.0,89195.0,0.01121139]
[1766732924429,0.07139,89203.0,89195.0,0.01121139]
[1766732924609,0.07139,89203.0,89196.0,0.01121126]
[1766732926350,0.01124,89204.0,89197.0,0.01121113]
[1766732926753,4.408e-05,89206.0,89204.0,0.00036]
[1766732927134,0.01128408,89206.0,89200.0,0.01121076]
[1766732928109,0.01128408,89206.0,89198.0,0.01121101]
[1766732928324,4.408e-05,89206.0,89199.0,0.01121088]
[1766732928525,0.01128408,89206.0,89199.0,0.01121088]
[1766732928928,0.01128408,89206.0,89200.0,0.01121076]
[1766732929552,0.01128408,89206.0,89201.0,0.01121063]
[1766732929976,0.01128408,89206.0,89200.0,0.01121076]
[1766732930355,0.01128408,89206.0,89201.0,0.01121063]
[1766732930980,0.01128408,89206.0,89200.0,0.01121076]
[1766732933455,0.01128408,89206.0,89201.0,0.01121063]
[1766732933652,0.01092408,89206.0,89201.0,0.01121063]
[1766732934345,0.01092408,89206.0,89202.0,0.01121051]
[1766732934561,0.01092408,89206.0,89201.0,0.01121063]
[1766732934765,0.01092408,89206.0,89202.0,0.01121051]
[1766732934999,0.01092408,89206.0,89201.0,0.01121063]
[1766732935294,0.01092408,89206.0,89202.0,0.01121051]
[1766732935518,0.01092408,89206.0,89201.0,0.01121063]
[1766732937688,0.01092408,89206.0,89201.0,0.01115809]
[1766732938645,0.01092408,89206.0,89200.0,0.01121076]
[1766732939572,0.01092408,89206.0,89199.0,0.06726499]
[1766732940102,0.01092408,89206.0,89200.0,0.01121076]
[1766732940298,0.01092408,89206.0,89201.0,0.01121063]
[1766732940525,0.01092408,89206.0,89198.0,0.01121101]
[1766732940727,0.01092408,89206.0,89199.0,0.01121088]
[1766732942714,0.01092408,89206.0,89198.0,0.01121101]
[1766732943150,0.01092408,89206.0,89199.0,0.01121088]
[1766732943350,0.01092408,89206.0,89200.0,0.01121076]
[1766732943564,0.01092408,89206.0,89199.0,0.01121088]
[1766732943975,0.01092408,89206.0,89200.0,0.01121076]
[1766732944912,0.01092408,89206.0,89198.0,0.01121101]
[1766732945117,0.01092408,89206.0,89199.0,0.01121088]
[1766732945322,0.01092408,89206.0,89200.0,0.01121076]
[1766732945703,0.01092408,89206.0,89197.0,0.01121113]
[1766732945956,0.01092408,89206.0,89199.0,0.01121088]
[1766732946334,0.01092408,89206.0,89200.0,0.01121076]
[1766732947467,0.01092408,89206.0,89201.0,0.01121063]
[1766732947674,0.01092408,89206.0,89200.0,0.01121076]
[1766732948171,0.01092408,89206.0,89199.0,0.01121088]
[1766732948736,0.01092408,89206.0,89198.0,0.01121101]
[1766732948924,0.01092408,89206.0,89199.0,0.01121088]
[1766732949963,0.01092408,89206.0,89200.0,0.01121076]
[1766732950642,0.01092408,89206.0,89198.0,0.01121101]
[1766732950839,0.01092408,89206.0,89198.0,0.06726559]
[1766732951592,0.01092408,89206.0,89199.0,0.01121088]
[1766732952162,0.01092408,89206.0,89198.0,0.01121101]
[1766732952377,0.01092408,89206.0,89199.0,0.01121088]
[1766732953121,0.01092408,89206.0,89200.0,0.01121076]
[1766732953261,0.01092408,89206.0,89199.0,0.01121088]
[1766732953461,0.01092408,89206.0,89200.0,0.01121076]
[1766732953681,0.01092408,89206.0,89199.0,0.01121088]
[1766732956068,0.01121101,89207.0,89198.0,0.01121101]
[1766732956272,0.01121101,89207.0,89199.0,0.01121088]
[1766732956719,0.02242089,89207.0,89197.0,0.06726636]
[1766732956926,0.08558101,89207.0,89198.0,0.01121101]
[1766732957341,0.08558101,89207.0,89199.0,0.01121088]
[1766732957563,0.08558101,89207.0,89200.0,0.01121076]
[1766732957892,0.08558101,89207.0,89199.0,0.01121088]
[1766732958466,0.07437,89197.0,89182.0,0.01121302]
[1766732958644,0.07437,89192.0,89183.0,0.02245289]
[1766732958827,0.08558176,89192.0,89183.0,0.01124]
[1766732959031,0.07437,89192.0,89183.0,0.02245289]
[1766732959292,0.07437,89192.0,89184.0,0.01121277]
[1766732959459,0.07437,89192.0,89186.0,0.01121252]
[1766732959640,0.07437,89192.0,89185.0,0.01121264]
[1766732959847,0.07382,89192.0,89186.0,0.01121252]
[1766732960052,0.07382,89192.0,89185.0,0.01121264]
[1766732961282,0.07382,89192.0,89187.0,0.01121239]
[1766732961758,0.07382,89192.0,89185.0,0.01121264]
[1766732962569,0.07382,89192.0,89186.0,0.01121252]
[1766732962771,0.07382,89192.0,89185.0,0.01121264]
[1766732962971,0.07382,89192.0,89186.0,0.01121252]
[1766732963181,0.07382,89192.0,89186.0,0.06727476]
[1766732963391,0.08558101,89198.0,89187.0,0.01121239]
[1766732963699,0.01121176,89192.0,89183.0,0.01124]
[1766732963901,0.07437,89194.0,89183.0,0.02245289]
[1766732964244,0.01121176,89192.0,89183.0,0.02245289]
[1766732964405,0.01121164,89193.0,89183.0,0.02245289]
[1766732964748,0.01121164,89193.0,89184.0,0.01121277]
[1766732964891,0.08558151,89194.0,89184.0,0.01121277]
[1766732965085,0.08558164,89193.0,89183.0,0.02245289]
[1766732965591,0.01121176,89192.0,89183.0,0.02245289]
[1766732966014,0.08558164,89193.0,89184.0,0.01121277]
[1766732966217,0.07437,89193.0,89185.0,0.01121264]
[1766732968507,0.07437,89193.0,89186.0,0.01121252]
[1766732968757,0.07437,89193.0,89187.0,0.01121239]
[1766732969639,0.07437,89193.0,89188.0,0.01121227]
[1766732969930,0.07437,89193.0,89189.0,0.01121214]
[1766732970130,0.07437,89193.0,89188.0,0.01121227]
[1766732970880,0.07437,89193.0,89187.0,0.01121239]
[1766732971106,0.07437,89193.0,89190.0,0.01121201]
[1766732971300,0.07437,89193.0,89187.0,0.01121239]
[1766732971719,0.39861527,89200.0,89189.0,0.01121214]
[1766732972037,0.40982603,89200.0,89191.0,0.01121189]
[1766732972188,0.01121088,89199.0,89190.0,0.01121201]
[1766732972598,0.01121088,89199.0,89189.0,0.01121214]
[1766732972842,0.01121088,89199.0,89190.0,0.01121201]
[1766732973040,0.01121101,89198.0,89189.0,0.01121214]
[1766732974086,0.01121139,89195.0,89183.0,0.07851679]
[1766732974243,0.000549,89189.0,89184.0,0.01121277]
[1766732974441,0.1416388,89195.0,89184.0,0.01121277]
[1766732974686,0.01121151,89194.0,89184.0,0.01121277]
[1766732975464,0.07437,89195.0,89185.0,0.01121264]
[1766732975835,0.08558139,89195.0,89186.0,0.01121252]
[1766732976037,0.07437,89195.0,89186.0,0.01121252]
[1766732977420,0.07437,89195.0,89187.0,0.01121239]
[1766732978009,0.07437,89195.0,89186.0,0.01121252]
[1766732978010,0.08558139,89195.0,89185.0,0.01121264]
[1766732978347,0.08558139,89195.0,89186.0,0.01121252]
[1766732978691,0.01121151,89194.0,89185.0,0.01121264]
[1766732978892,0.08558139,89195.0,89186.0,0.01121252]
[1766732979196,0.01121151,89194.0,89185.0,0.01121264]
[1766732979565,0.07437,89195.0,89186.0,0.01121252]
[1766732979792,0.08558139,89195.0,89186.0,0.01121252]
[1766732980002,0.06726504,89200.0,89187.0,0.01121239]
[1766732980228,0.39861527,89200.0,89192.0,0.01121176]
[1766732980901,0.39861527,89200.0,89191.0,0.01121189]
[1766732981298,0.39861527,89200.0,89192.0,0.01121176]
[1766732981912,0.39861527,89200.0,89191.0,0.01121189]
[1766732982501,0.07437,89201.0,89192.0,0.01121176]
[1766732982913,0.07437,89201.0,89193.0,0.01121164]
[1766732983614,0.07437,89201.0,89195.0,0.01121139]
[1766732983964,0.07437,89201.0,89194.0,0.01121151]
[1766732985096,0.07437,89201.0,89195.0,0.01121139]
[1766732985752,0.07437,89201.0,89196.0,0.01121126]
[1766732986036,0.07437,89201.0,89195.0,0.01121139]
[1766732986469,0.07437,89201.0,89196.0,0.01121126]
[1766732986677,0.07437,89201.0,89195.0,0.01121139]
[1766732986794,0.07437,89201.0,89196.0,0.01121126]
[1766732988566,0.07437,89201.0,89195.0,0.01121139]
[1766732988983,0.07437,89201.0,89196.0,0.01121126]
[1766732989633,0.07437,89201.0,89195.0,0.01121139]
[1766732989985,0.07437,89201.0,89196.0,0.01121126]
[1766732990479,0.07437,89201.0,89197.0,0.01121113]
[1766732990986,0.07437,89201.0,89196.0,0.01121126]
[1766732991286,0.07437,89201.0,89195.0,0.01121139]
[1766732991489,0.07437,89201.0,89196.0,0.01121126]
[1766732991848,0.07437,89201.0,89197.0,0.01121113]
[1766732992455,0.07437,89201.0,89198.0,0.01121101]
[1766732992664,0.07437,89201.0,89197.0,0.01121113]
[1766732995113,0.07437,89201.0,89196.0,0.01121126]
[1766732995611,0.07437,89201.0,89195.0,0.01121139]
[1766732995770,0.07437,89201.0,89194.0,0.06726874]
[1766732995970,0.07437,89201.0,89195.0,0.01121139]
[1766732996178,0.000549,89195.0,89194.0,0.01121151]
[1766732996581,0.07437,89201.0,89195.0,0.01121139]
[1766732997064,0.07437,89201.0,89194.0,0.01121151]
[1766732997451,0.07437,89201.0,89195.0,0.01121139]
[1766732998030,0.07437,89201.0,89194.0,0.01121151]
[1766732998213,0.07437,89201.0,89194.0,0.06726858]
[1766732998842,0.07437,89201.0,89196.0,0.01121126]
[1766732999041,0.07437,89201.0,89195.0,0.01121139]
[1766732999267,0.07437,89201.0,89196.0,0.01121126]
[1766732999474,0.07437,89201.0,89196.0,0.01066226]
[1766732999641,0.07437,89201.0,89196.0,0.01121126]
[1766732999820,0.07437,89201.0,89195.0,0.01121139]
[1766733000025,0.07437,89201.0,89196.0,0.01121126]
[1766733000225,0.07437,89201.0,89195.0,0.01121139]
[1766733000671,0.07437,89201.0,89194.0,0.01121151]
[1766733001079,0.07437,89201.0,89193.0,0.01121164]
[1766733001381,0.07437,89201.0,89194.0,0.01121151]
[1766733001537,0.07437,89201.0,89189.0,0.01121214]
[1766733001732,0.06957,89194.0,89188.0,0.01121227]
[1766733002051,0.06902,89194.0,89182.0,0.01129612]
[1766733002254,0.06902,89194.0,89191.0,0.01121189]
[1766733004589,0.06902,89194.0,89191.0,0.06727106]
[1766733004787,0.06902,89194.0,89192.0,0.05605849]
[1766733005156,0.06902,89194.0,89190.0,0.01121201]
[1766733005357,0.00055,89192.0,89190.0,0.01121201]
[1766733005629,0.06902,89194.0,89191.0,0.01121189]
[1766733005835,0.06902,89194.0,89193.0,0.05605821]
[1766733006041,0.068471,89194.0,89191.0,0.01121189]
[1766733006402,0.068471,89194.0,89191.0,0.06727095]
[1766733007782,0.068471,89194.0,89193.0,0.05605821]
[1766733008410,0.068471,89194.0,89191.0,0.06727095]
[1766733008784,0.068471,89194.0,89192.0,0.05605839]
[1766733009794,0.068471,89194.0,89191.0,0.06727095]
[1766733010202,0.01124,89202.0,89195.0,0.01121139]
[1766733010401,0.08026,89210.0,89205.0,0.01121013]
[1766733010838,0.06902,89210.0,89204.0,0.01121025]
[1766733010966,0.06902,89210.0,89205.0,0.01121013]
[1766733011171,0.06902,89210.0,89204.0,0.01121025]
[1766733013341,0.06902,89210.0,89200.0,0.06726434]
[1766733013342,0.000549,89204.0,89202.0,0.01121051]
[1766733013768,0.06902,89210.0,89204.0,0.01121025]
[1766733014349,0.06902,89210.0,89205.0,0.01121013]
[1766733014568,0.06902,89210.0,89204.0,0.01121025]
[1766733015883,0.06902,89210.0,89205.0,0.01121013]
[1766733016075,0.06902,89210.0,89204.0,0.01121025]
[1766733016576,0.06902,89210.0,89205.0,0.01121013]
[1766733016949,0.06902,89210.0,89204.0,0.01121025]
[1766733017360,0.06902,89210.0,89205.0,0.01121013]
[1766733017571,0.06902,89210.0,89204.0,0.01121025]
[1766733017779,0.06902,89210.0,89205.0,0.01121013]
[1766733018182,0.06902,89210.0,89204.0,0.01121025]
[1766733019103,0.06902,89210.0,89203.0,0.01121038]
[1766733019621,0.06902,89210.0,89204.0,0.01121025]
[1766733021503,0.06902,89210.0,89205.0,0.01121013]
[1766733023452,0.06902,89210.0,89204.0,0.01121025]
[1766733024480,0.06902,89210.0,89203.0,0.01121038]
[1766733024680,0.06902,89210.0,89204.0,0.01121025]
[1766733024823,0.06902,89210.0,89203.0,0.01121038]
[1766733025539,0.06902,89210.0,89204.0,0.01121025]
[1766733026056,0.06902,89210.0,89205.0,0.01121013]
[1766733026276,0.06902,89210.0,89204.0,0.01121025]
[1766733026982,0.06902,89210.0,89203.0,0.01121038]
[1766733027314,0.06902,89210.0,89204.0,0.01121025]
[1766733027507,0.06902,89210.0,89200.0,0.01121076]
[1766733027760,0.075069,89204.0,89201.0,0.01121063]
[1766733027926,0.07452,89204.0,89202.0,0.05605218]
[1766733029821,0.07452,89204.0,89201.0,0.06726338]
[1766733030030,0.08576,89211.0,89202.0,0.01121051]
[1766733030247,0.00055,89202.0,89198.0,0.01121101]
[1766733030450,0.00055,89202.0,89194.0,0.06726886]
[1766733030663,0.01121,89206.0,89197.0,0.01121113]
[1766733030862,0.01120988,89207.0,89198.0,0.01121101]
[1766733031038,0.01120975,89208.0,89199.0,0.01121088]
[1766733031246,0.02245126,89205.0,89199.0,0.01121088]
[1766733031444,0.07452,89204.0,89196.0,0.01124]
[1766733031849,0.01121076,89200.0,89194.0,0.01124]
[1766733032195,0.07452,89203.0,89194.0,0.01124]
[1766733032332,0.08573038,89203.0,89191.0,0.01121189]
[1766733032527,0.07452,89201.0,89193.0,0.01121164]
[1766733032727,0.07452,89201.0,89194.0,0.01121151]
[1766733033280,0.07452,89201.0,89196.0,0.01121126]
[1766733033871,0.07452,89201.0,89195.0,0.01121139]
[1766733034097,0.07452,89201.0,89196.0,0.01121126]
[1766733034297,0.07452,89201.0,89195.0,0.01121139]
[1766733034498,0.07452,89201.0,89194.0,0.01121151]
[1766733034950,0.07452,89201.0,89195.0,0.01121139]
[1766733035167,0.07452,89201.0,89196.0,0.01121126]
[1766733035396,0.07452,89201.0,89195.0,0.01121139]
[1766733036139,0.07452,89201.0,89194.0,0.01121151]
[1766733036388,0.07452,89201.0,89195.0,0.01121139]
[1766733036598,0.07452,89201.0,89193.0,0.01121164]
[1766733036798,0.07452,89201.0,89192.0,0.01121176]
[1766733037045,0.07452,89201.0,89193.0,0.01121164]
[1766733037210,0.07452,89201.0,89194.0,0.01121151]
[1766733037614,0.07452,89201.0,89195.0,0.01121139]
[1766733037823,0.07452,89201.0,89194.0,0.01121151]
[1766733038023,0.07452,89201.0,89195.0,0.01121139]
[1766733038244,0.07452,89201.0,89196.0,0.01121126]
[1766733039047,0.01121151,89203.0,89201.0,0.000549]
[1766733039257,0.01121151,89203.0,89197.0,0.01121113]
[1766733039620,0.01121151,89203.0,89196.0,0.01121126]
[1766733039935,0.01121151,89203.0,89197.0,0.01121113]
[1766733040133,0.01121151,89203.0,89196.0,0.01121126]
[1766733040549,0.01121151,89203.0,89197.0,0.01121113]
[1766733041265,0.01121151,89203.0,89196.0,0.01121126]
[1766733041469,0.01121151,89203.0,89197.0,0.01121113]
[1766733041970,0.01121151,89203.0,89196.0,0.01121126]
[1766733042286,0.01121151,89203.0,89197.0,0.01121113]
[1766733042439,0.01121151,89203.0,89196.0,0.01121126]
[1766733043236,0.01121151,89203.0,89197.0,0.01121113]
[1766733043610,0.01066251,89203.0,89199.0,0.01121088]
[1766733043779,0.01066251,89203.0,89198.0,0.01121101]
[1766733044403,0.01066251,89203.0,89197.0,0.01121113]
[1766733044605,0.01066251,89203.0,89198.0,0.01121101]
[1766733045378,0.01066251,89203.0,89199.0,0.01121088]
[1766733045584,0.01066251,89203.0,89198.0,0.01121101]
[1766733045935,0.01066251,89203.0,89199.0,0.01121088]
[1766733046145,0.01066251,89203.0,89198.0,0.01121101]
[1766733046384,0.00584061,89203.0,89199.0,0.06726532]
[1766733046587,0.06725401,89214.0,89202.0,0.01121051]
[1766733046793,0.01120925,89212.0,89202.0,0.01121051]
[1766733046976,0.1175956,89213.0,89203.0,0.01121038]
[1766733047219,0.01120925,89212.0,89203.0,0.01121038]
[1766733047429,0.01120938,89211.0,89202.0,0.01121051]
[1766733047885,0.01120963,89209.0,89198.0,0.01121101]
[1766733048116,0.07274,89201.0,89192.0,0.05605831]
[1766733048330,0.07274,89201.0,89191.0,0.01121189]
[1766733048535,0.07274,89201.0,89194.0,0.01121151]
[1766733048767,0.07274,89201.0,89193.0,0.01121164]